{"text_format":"1","workbook":"xlsx","n_sheets":3,"sheets":["Slump Cone Record","Revision History","Lists"],"not_rendered":{"charts":0,"images":1,"macros":1,"external_links":1,"defined_names":102,"comments":0,"pivot_tables":0},"unopened":[],"bounds":{"document_bytes":16777216,"sheet_cells":100000,"rows_first":2000,"rows_last":500,"rows_between":2000,"halvings":0,"cell_chars":16384,"cell_head_chars":4096},"cells_cut":0,"cells_raw":0,"read":"whole","date_system":"1900"}

{"sheet":"Slump Cone Record","index":0,"n_rows":79,"n_cols":9,"rows_kept":79,"cut":false,"hidden":false,"merged":[[44,1,44,2],[45,1,45,2],[46,1,46,2],[47,1,47,2],[48,1,48,2],[55,1,55,4],[56,1,56,4],[59,3,59,4],[60,3,60,4],[49,1,49,2],[50,1,50,2],[52,1,52,4],[53,1,53,4],[54,1,54,4],[0,0,0,6],[1,0,1,6],[3,3,3,6],[5,3,5,6],[7,3,7,6],[17,3,17,6],[7,0,7,2],[5,0,5,2],[3,0,3,2],[2,0,2,6],[13,0,13,2],[11,0,11,2],[9,0,9,2],[17,0,17,2],[9,3,9,6],[15,3,15,6],[15,0,15,2],[13,3,13,6],[11,3,11,6],[23,3,23,6],[66,3,66,6],[23,0,23,2],[21,0,21,2],[19,0,19,2],[19,3,19,6],[21,3,21,6],[54,5,54,6],[55,5,55,6],[56,5,56,6],[52,5,52,6],[53,5,53,6],[59,5,59,6],[60,5,60,6],[59,1,59,2],[60,1,60,2],[70,0,70,2],[70,3,70,6],[68,3,68,6],[64,0,64,6],[68,0,68,2],[66,0,66,2],[78,3,78,6],[78,0,78,2],[76,0,76,2],[74,0,74,2],[72,0,72,2],[74,3,74,6],[76,3,76,6],[72,3,72,6]]}
["Texas Department of Transportation"]
["Slump Cone Verification Record"]
[{"$f":"IF(OR(ISBLANK(Serial_Number),ISBLANK(Model_Number),ISBLANK(Description),ISBLANK(Manufacturer_Name),ISBLANK(Lab_Unit),ISBLANK(Calibration_Method),ISBLANK(Completed_Date),ISBLANK(Action_Recommended),ISBLANK(Overall_Status),ISBLANK(Remarks),ISBLANK(Authority),ISBLANK(Performed_By),ISBLANK(Reviewed_By),ISBLANK(Reviewed_Date),AND(ISBLANK(NonTxDOT_Other),Authority=\"Non-TxDOT/Other\"),AND(ISBLANK(District_Lab_Area_Office),Authority=\"District Lab/Area Office\"),AND(ISBLANK(MTD_Section),Authority=\"Materials and Tests Division\")),\"***ALL BLANK FIELDS MUST BE ADDRESSED.***\",\"\")","v":"***ALL BLANK FIELDS MUST BE ADDRESSED.***"},null,null,null,null,null,null,null,{"$f":"IF(A3=\"\",\"\",\"Instructions\")","v":"Instructions"}]
["Serial Number:",null,null,null,null,null,null,null,{"$f":"IF(ISBLANK(Serial_Number),\"Enter Serial Number exactly as it appears in APCM. SN must correspond to the physical piece of equipment.\",\"\")","v":"Enter Serial Number exactly as it appears in APCM. SN must correspond to the physical piece of equipment."}]
[]
["Model Number:",null,null,null,null,null,null,null,{"$f":"IF(ISBLANK(Model_Number),\"Enter Model Number exactly as it appears in APCM.\",\"\")","v":"Enter Model Number exactly as it appears in APCM."}]
[]
["Description:",null,null,null,null,null,null,null,{"$f":"IF(ISBLANK(Description),\"Enter Description exactly as it appears in APCM.\",\"\")","v":"Enter Description exactly as it appears in APCM."}]
[]
["Manufacturer Name:",null,null,null,null,null,null,null,{"$f":"IF(ISBLANK(Manufacturer_Name),\"Enter Manufacturer exactly as it appears in APCM. If no manufacturer exists, enter 'Not Available'.\",\"\")","v":"Enter Manufacturer exactly as it appears in APCM. If no manufacturer exists, enter 'Not Available'."}]
[]
["Lab Unit:",null,null,null,null,null,null,null,{"$f":"IF(ISBLANK(Lab_Unit),\"Enter the Lab Unit exactly as it appears in APCM.\",\"\")","v":"Enter the Lab Unit exactly as it appears in APCM."}]
[]
["Calibration Method:",null,null,"ASTM C143",null,null,null,null,{"$f":"IF(ISBLANK(Calibration_Method),\"Select the calibration/verification/standardization procedure used.\",\"\")","v":""}]
[]
["Completed Date:",null,null,null,null,null,null,null,{"$f":"IF(ISBLANK(Completed_Date),\"Enter the actual date the calibration/verification/standardization was performed.\",\"\")","v":"Enter the actual date the calibration/verification/standardization was performed."}]
[]
["Calibration Interval (months):",null,null,12]
[]
["Next Due Date:",null,null,{"$f":"IF(Overall_Status=\"FAIL\",\"N/A\",IF(D16=\"\",\"\",(DATE(YEAR(D16),MONTH(D16)+D18,DAY(D16)))))","v":""},null,null,null,null,{"$f":"IF(Next_Due_Date=\"\",\"This field will automatically populate when 'Completed Date' has been entered.\",\"\")","v":"This field will automatically populate when 'Completed Date' has been entered."}]
[]
["Overall Status:",null,null,null,null,null,null,null,{"$f":"IF(ISBLANK(Overall_Status),\"Select the appropriate status from the drop-down list. If equipment fails, the equipment record must be made inactive in APCM.\",\"\")","v":"Select the appropriate status from the drop-down list. If equipment fails, the equipment record must be made inactive in APCM."}]
[]
["Action Recommended:",null,null,null,null,null,null,null,{"$f":"IF(ISBLANK(Action_Recommended),\"Ensure that 'Overall Status' has been selected, then select the appropriate action from the drop-down list.\",\"\")","v":"Ensure that 'Overall Status' has been selected, then select the appropriate action from the drop-down list."}]
[]
["Detailed Results:"]
[]
[]
[]
[]
[]
[]
[]
[]
[]
[]
[]
[]
[]
[]
[]
[]
[]
[null,"Slump Cone Dimensions:"]
[null,"Measurements",null,"A","B","C","D"]
[null,1]
[null,2]
[null,3]
[null,4]
[null,"Average",null,{"$f":"IF(ISBLANK(D47), \"\", ROUND(AVERAGE(D46:D47), 3))","v":""},{"$f":"IF(ISBLANK(E47), \"\", ROUND(AVERAGE(E46:E47), 3))","v":""},{"$f":"IF(ISBLANK(F47), \"\", ROUND(AVERAGE(F46:F47), 3))","v":""},{"$f":"IF(ISBLANK(G49), \"\", ROUND(AVERAGE(G46:G49), 3))","v":""}]
[null,"Requirement",null,"4 ± 1/8”","8 ± 1/8”","12 ± 1/8”","≥0.060\""]
[]
[null,"Is the slump cone free of concrete buildup?"]
[null,"Is the slump cone free of indentations?"]
[null,"Is the slump cone equipped with foot pieces?"]
[null,"Is the interior of the cone free from projections?"]
[null,"Is the interior of the slump free of seams?"]
[]
[null,"Standard/Reference Equipment:"]
[null,"Equipment",null,"Equipment ID",null,"Equipment Expiration"]
[null,"Caliper, readable to 0.001\""]
[]
[]
["Remarks:"]
[null,null,null,null,null,null,null,null,{"$f":"IF(ISBLANK(Remarks),\"Enter any comments regarding the equipment calibration/verification/standardization. \nComments must be entered for Action Recommended of 'Other' and/or Overall Status of 'Fail'. \nIf no comments are needed, enter 'None'.\",\"\")","v":"Enter any comments regarding the equipment calibration/verification/standardization. \nComments must be entered for Action Recommended of 'Other' and/or Overall Status of 'Fail'. \nIf no comments are needed, enter 'None'."}]
[]
["Authority:",null,null,null,null,null,null,null,{"$f":"IF(ISBLANK(Authority),\"Select the appropriate calibrating authority from the drop-down list.\",\"\")","v":"Select the appropriate calibrating authority from the drop-down list."}]
[]
["MTD Section:",null,null,null,null,null,null,null,{"$f":"IF(ISBLANK(MTD_Section),\"Enter the MTD Section that performed the calibration/verification/standardization.\",\"\")","v":"Enter the MTD Section that performed the calibration/verification/standardization."}]
[]
["District Lab/Area Office:",null,null,null,null,null,null,null,{"$f":"IF(ISBLANK(District_Lab_Area_Office),\"Enter the name of the district lab or area office that performed the calibration/verification/standardization.\",\"\")","v":"Enter the name of the district lab or area office that performed the calibration/verification/standardization."}]
[]
["Non-TxDOT/Other Firm:",null,null,null,null,null,null,null,{"$f":"IF(ISBLANK(D73),\"Enter the name of the third-party entity that performed the calibration/verification/standardization.\",\"\")","v":"Enter the name of the third-party entity that performed the calibration/verification/standardization."}]
[]
["Performed By:",null,null,null,null,null,null,null,{"$f":"IF(ISBLANK(Performed_By),\"Enter the name of the individual who performed the calibration/verification/standardization.\",\"\")","v":"Enter the name of the individual who performed the calibration/verification/standardization."}]
[]
["Reviewed By:",null,null,null,null,null,null,null,{"$f":"IF(ISBLANK(Reviewed_By),\"Enter the name of the individual who reviewed the record for completeness and accuracy.\",\"\")","v":"Enter the name of the individual who reviewed the record for completeness and accuracy."}]
[]
["Reviewed Date:",null,null,null,null,null,null,null,{"$f":"IF(ISBLANK(Reviewed_Date),\"Enter the actual date the record was reviewed.\",IF(Reviewed_Date<Completed_Date,\"Reviewed Date must be after Completed Date.\",\"\"))","v":"Enter the actual date the record was reviewed."}]

{"sheet":"Revision History","index":1,"n_rows":4,"n_cols":3,"rows_kept":4,"cut":false,"hidden":false,"merged":[]}
["Revision Date","Revision Description","Revised By"]
["2021-08-09","Added fields to enter calibration equipment ID and calibration date.","C. Krezinski"]
["2022-05-05","Changed SN to Equipment ID, added notes for clarification of the figure, changed \"results\" to \"requirement\" in slump con table, changed \"0.06\" to \"≥0.06\"\" in slump con table, added \"Reviewed by\" field","M. Moradian"]
["2023-02-03","Updated to new template format.","A. Melton"]

{"sheet":"Lists","index":2,"n_rows":64,"n_cols":8,"rows_kept":64,"cut":false,"hidden":true,"merged":[]}
["Status","Pass","Fail","Authority","MTD Sections","Calibration_Method",null,"Date Range"]
["Pass","None","Repair","Materials and Tests Division","Rigid Pavements","Tex-198-E",null,"2000-01-01"]
["Fail","Repair","Replace","District Lab/Area Office","Flexible Pavements","Tex-237-F",null,"2100-01-01"]
[null,"Replace","Other (See Remarks)","Non-TxDOT/Other","Soils & Aggregates","Tex-498-A"]
[null,"Other (See Remarks)",null,null,"Coatings, Calibration, & Traffic Materials","Tex-900-K"]
[null,null,null,null,null,"Tex-901-K"]
[null,null,null,null,null,"Tex-902-K"]
[null,null,null,null,null,"Tex-903-K"]
[null,null,null,null,null,"Tex-905-K"]
[null,null,null,null,null,"Tex-907-K"]
[null,null,null,null,null,"Tex-909-K"]
[null,null,null,null,null,"Tex-911-K"]
[null,null,null,null,null,"Tex-913-K"]
[null,null,null,null,null,"Tex-914-K"]
[null,null,null,null,null,"Tex-916-K"]
[null,null,null,null,null,"Tex-920-K"]
[null,null,null,null,null,"Tex-921-K"]
[null,null,null,null,null,"Tex-922-K"]
[null,null,null,null,null,"Tex-923-K"]
[null,null,null,null,null,"Tex-924-K"]
[null,null,null,null,null,"Tex-925-K"]
[null,null,null,null,null,"Tex-926-K"]
[null,null,null,null,null,"Tex-927-K"]
[null,null,null,null,null,"Tex-930-K"]
[null,null,null,null,null,"AASHTO R28"]
[null,null,null,null,null,"AASHTO T202"]
[null,null,null,null,null,"AASHTO T228"]
[null,null,null,null,null,"AASHTO T240"]
[null,null,null,null,null,"AASHTO T313"]
[null,null,null,null,null,"AASHTO T315"]
[null,null,null,null,null,"AASHTO T316"]
[null,null,null,null,null,"AASHTO T48"]
[null,null,null,null,null,"AASHTO T49"]
[null,null,null,null,null,"AASHTO T50"]
[null,null,null,null,null,"AASHTO T51"]
[null,null,null,null,null,"AASHTO T53"]
[null,null,null,null,null,"AASHTO T59"]
[null,null,null,null,null,"ASME B40"]
[null,null,null,null,null,"ASME B89"]
[null,null,null,null,null,"ASTM C109"]
[null,null,null,null,null,"ASTM C1231"]
[null,null,null,null,null,"ASTM C143"]
[null,null,null,null,null,"ASTM C151"]
[null,null,null,null,null,"ASTM C1702"]
[null,null,null,null,null,"ASTM C173"]
[null,null,null,null,null,"ASTM C174"]
[null,null,null,null,null,"ASTM C192"]
[null,null,null,null,null,"ASTM C204"]
[null,null,null,null,null,"ASTM C231"]
[null,null,null,null,null,"ASTM C430"]
[null,null,null,null,null,"ASTM C511"]
[null,null,null,null,null,"ASTM C604"]
[null,null,null,null,null,"ASTM C617"]
[null,null,null,null,null,"ASTM C78"]
[null,null,null,null,null,"ASTM D4237"]
[null,null,null,null,null,"ASTM C6084"]
[null,null,null,null,null,"ASTM E10"]
[null,null,null,null,null,"ASTM E18"]
[null,null,null,null,null,"ASTM E2309"]
[null,null,null,null,null,"ASTM E4"]
[null,null,null,null,null,"ASTM E83"]
[null,null,null,null,null,"EXT - External Calibration"]
[null,null,null,null,null,"NA - Not Applicable"]
[null,null,null,null,null,"SS - Supplier's Standard"]